bitfinex/quotes_ETHUSD_20251012
["timestamp","ask_amount","ask_price","bid_price","bid_amount"]
[1760251184665,18.06971099,3834.2,3834.0,0.002]
[1760251184822,14.18026199,3834.2,3834.0,0.002]
[1760251185146,16.94965099,3834.2,3834.0,0.002]
[1760251185849,17.31680017,3834.2,3834.0,0.002]
[1760251186253,34.99425517,3834.2,3834.0,0.002]
[1760251187149,4.99425517,3834.2,3834.0,0.002]
[1760251187354,34.99425517,3834.2,3834.0,0.002]
[1760251188257,35.62785517,3834.2,3834.0,0.002]
[1760251189132,35.62785517,3834.2,3834.1,1.232]
[1760251189940,32.09468717,3834.2,3834.1,1.232]
[1760251190347,35.62785517,3834.2,3834.1,1.232]
[1760251191253,29.29378417,3834.2,3834.1,1.232]
[1760251191452,23.90132399,3834.2,3834.1,1.232]
[1760251192155,22.10248599,3834.2,3834.1,1.232]
[1760251192347,20.89557399,3834.2,3834.1,1.232]
[1760251193338,34.99425517,3834.2,3834.1,1.232]
[1760251193726,28.48508299,3834.2,3834.1,1.232]
[1760251193962,15.97200899,3834.2,3834.1,1.232]
[1760251194326,34.09123499,3834.2,3834.1,1.232]
[1760251194720,18.25281417,3834.2,3834.1,1.232]
[1760251195023,15.48800399,3834.2,3834.1,1.232]
[1760251195459,17.91228399,3834.2,3834.1,1.232]
[1760251195636,7.88030299,3834.2,3834.1,1.232]
[1760251195834,7.97930299,3834.2,3834.1,1.232]
[1760251196563,34.62710599,3834.2,3834.1,1.232]
[1760251197636,33.56479299,3834.2,3834.1,1.232]
[1760251198464,34.62710599,3834.2,3834.1,1.232]
[1760251198762,33.31899599,3834.2,3834.1,1.232]
[1760251199469,34.62710599,3834.2,3834.1,1.232]
[1760251199883,23.51185099,3834.2,3834.1,1.232]
[1760251200082,15.11895299,3834.2,3834.1,1.232]
[1760251200248,9.64557799,3834.2,3834.1,1.232]
[1760251200448,16.22172799,3834.2,3834.1,1.232]
[1760251200697,12.78272799,3834.2,3834.1,1.232]
[1760251201471,30.66768399,3834.2,3834.1,1.232]
[1760251201767,13.64220199,3834.2,3834.1,1.232]
[1760251202480,34.62710599,3834.2,3834.1,1.232]
[1760251203053,22.53640499,3834.2,3834.1,1.232]
[1760251203284,16.41900199,3834.2,3834.1,1.232]
[1760251203479,33.22682199,3834.2,3834.1,1.232]
[1760251203792,32.23043217,3834.2,3834.1,1.232]
[1760251204078,32.63958105,3834.2,3834.1,1.232]
[1760251204249,32.41919405,3834.2,3834.1,1.232]
[1760251204448,5.40340405,3834.2,3834.1,1.232]
[1760251204670,29.47841905,3834.2,3834.1,1.232]
[1760251205584,8.86423887,3834.2,3834.1,1.232]
[1760251205753,8.96323887,3834.2,3834.1,1.232]
[1760251206680,30.94210387,3834.2,3834.1,1.232]
[1760251206886,27.35187087,3834.2,3834.1,1.232]
[1760251207083,23.03131887,3834.2,3834.1,1.232]
[1760251207653,35.03625487,3834.2,3834.1,1.232]
[1760251208465,22.48223706,3834.2,3834.1,3.84017401]
[1760251208663,0.001,3838.4,3834.3,1.92]
[1760251208951,0.13627724,3837.9,3834.4,0.67235924]
[1760251209154,0.13627724,3837.9,3834.2,4.86801473]
[1760251209155,0.38904856,3837.0,3834.2,2.2599174]
[1760251209353,1.92,3836.3,3835.0,2.60755919]
[1760251209572,0.38904856,3837.0,3835.1,0.26075592]
[1760251209573,1.92,3836.6,3835.1,0.26075592]
[1760251209775,0.38904856,3837.0,3835.6,2.60715403]
[1760251209981,0.001,3837.0,3835.6,2.60715403]
[1760251210158,0.001,3837.0,3835.6,3.04285403]
[1760251215405,4.52721172,3837.0,3835.6,3.04285403]
[1760251215605,1.921,3837.0,3835.6,3.04285403]
[1760251216790,2.60723174,3837.0,3835.6,3.04285403]
[1760251216993,1.92,3836.9,3835.6,3.04285403]
[1760251218529,0.001,3837.0,3835.6,3.04285403]
[1760251218829,0.1306,3835.7,3835.6,3.04285403]
[1760251219594,0.1306,3835.7,3835.6,5.04285403]
[1760251220013,0.1306,3835.7,3835.6,2.0]
[1760251220881,0.1306,3835.7,3835.6,2.4357]
[1760251221093,0.1306,3835.7,3835.6,2.93999806]
[1760251221500,0.1306,3835.7,3835.6,2.50429806]
[1760251221940,0.1306,3835.7,3835.6,2.0]
[1760251225393,16.330311,3835.7,3835.6,2.0]
[1760251225824,18.93739705,3835.7,3835.6,2.0]
[1760251225993,17.62475705,3835.7,3835.6,2.0]
[1760251226412,20.18373005,3835.7,3835.6,2.0]
[1760251226728,18.72123005,3835.7,3835.6,2.0]
[1760251227394,20.45215005,3835.7,3835.6,2.0]
[1760251227595,20.21154705,3835.7,3835.6,2.0]
[1760251228537,18.66287805,3835.7,3835.6,2.0]
[1760251229405,21.32566505,3835.7,3835.6,2.0]
[1760251229607,16.87790805,3835.7,3835.6,2.0]
[1760251230020,16.67734805,3835.7,3835.6,2.0]
[1760251230420,16.30011705,3835.7,3835.6,2.0]
[1760251230621,16.42971705,3835.7,3835.6,2.0]
[1760251231445,19.00674005,3835.7,3835.6,2.0]
[1760251231768,17.67541705,3835.7,3835.6,2.0]
[1760251231909,8.56825705,3835.7,3835.6,2.0]
[1760251232104,8.69785705,3835.7,3835.6,2.0]
[1760251232524,21.35667105,3835.7,3835.6,2.0]
[1760251232727,19.09000905,3835.7,3835.6,2.0]
[1760251233447,4.65768605,3835.7,3835.6,2.0]
[1760251233649,21.96034505,3835.7,3835.6,2.0]
[1760251234348,19.60825105,3835.7,3835.6,2.0]
[1760251234546,19.76643405,3835.7,3835.6,2.0]
[1760251234753,19.51543405,3835.7,3835.6,2.0]
[1760251235048,7.570263,3835.7,3835.6,2.0]
[1760251235252,9.121123,3835.7,3835.6,2.0]
[1760251235659,10.60401,3835.7,3835.6,2.0]
[1760251236253,1.921,3835.7,3835.6,2.0]
[1760251236724,1.921,3835.7,3835.6,2.46093447]
[1760251237545,1.921,3835.7,3835.6,5.5143885]
[1760251238270,0.001,3835.7,3835.6,5.5143885]
[1760251238969,0.001,3835.7,3835.6,2.46093447]
[1760251239268,0.001,3835.7,3835.6,2.0]
[1760251239733,0.001,3835.7,3835.6,5.05345403]
[1760251240130,0.1306,3835.7,3835.6,5.05345403]
[1760251240381,0.1306,3835.7,3835.6,5.68705403]
[1760251240565,0.001,3835.7,3835.6,5.68705403]
[1760251240876,0.001,3835.7,3835.6,5.89604356]
[1760251241779,0.001,3835.7,3835.6,6.52964356]
[1760251245075,1.92,3837.5,3836.7,2.60636432]
[1760251245279,2.60587912,3837.5,3836.7,3.06326432]
[1760251245482,2.60587912,3837.5,3836.8,0.5888405]
[1760251245839,1.92,3837.2,3836.4,0.4569]
[1760251246054,1.92,3837.1,3836.4,3.06346192]
[1760251246475,1.92,3837.1,3836.4,2.60656192]
[1760251246778,1.92,3837.1,3836.5,0.4569]
[1760251249780,2.60601963,3837.3,3836.5,3.06343665]
[1760251249987,3.01425663,3838.2,3836.6,0.30634366]
[1760251249988,1.92,3837.4,3836.6,0.30634366]
[1760251250183,1.92,3837.5,3836.7,2.60638514]
[1760251250357,1.92,3837.6,3836.8,0.4569]
[1760251250586,1.92,3837.3,3836.8,0.4569]
[1760251250998,1.92,3837.3,3837.1,2.60611138]
[1760251251168,0.1296,3837.1,3837.0,2.60620276]
[1760251251503,0.1296,3837.0,3836.8,0.33697057]
[1760251251681,0.1296,3836.8,3836.6,0.30634366]
[1760251251872,2.013237,3837.6,3836.7,0.79388522]
[1760251252070,2.629437,3837.7,3837.0,2.60618968]
[1760251252293,0.1296,3837.0,3836.3,0.4569]
[1760251252481,2.60584438,3837.6,3836.7,2.60640654]
[1760251252686,2.60584438,3837.6,3836.4,2.60661036]
[1760251252687,1.92,3837.2,3836.6,2.60643795]
[1760251252881,1.92,3837.3,3836.6,2.60643795]
[1760251253094,1.92,3837.3,3836.7,0.56699468]
[1760251253677,1.92,3837.4,3836.7,1.02389468]
[1760251253878,1.92,3837.6,3837.0,2.60619578]
[1760251254089,2.60552564,3838.0,3837.1,0.4569]
[1760251254413,1.92,3837.8,3837.2,2.60601831]
[1760251254608,2.0496,3838.3,3836.4,0.1296]
[1760251254814,0.1296,3837.1,3836.9,0.4618]
[1760251255110,0.1296,3837.1,3836.6,2.60647121]
[1760251255111,2.60590957,3837.5,3836.7,2.60634655]
[1760251255316,2.60590957,3837.5,3836.8,2.60633564]
[1760251255478,1.92,3837.3,3836.8,2.60633564]
[1760251255678,1.92,3837.3,3836.8,3.17380055]
[1760251255873,5.414423,3837.4,3836.8,3.17380055]
[1760251256079,2.60590957,3837.5,3836.9,2.60624966]
[1760251256080,1.92,3837.5,3836.9,2.60624966]
[1760251256311,2.60570109,3837.8,3837.1,2.60613265]
[1760251256474,2.60565949,3837.8,3837.0,2.60618478]
[1760251256681,2.60565949,3837.8,3837.0,3.06798478]
[1760251256882,2.60565949,3837.8,3837.1,3.06793227]
[1760251257304,1.92,3837.9,3837.2,2.60606414]
[1760251257305,2.60559906,3837.9,3837.2,2.60606414]
[1760251257508,1.92,3838.1,3837.3,3.06777793]
[1760251257694,1.92,3838.2,3837.4,0.4618]
[1760251258029,0.40873466,3838.7,3837.4,3.0677112]
[1760251258030,1.92,3838.3,3837.4,3.0677112]
[1760251258182,0.001,3838.4,3837.8,2.60565293]
[1760251258377,0.001,3838.4,3837.9,3.06738644]
[1760251258891,0.001,3838.4,3838.0,0.4618]
[1760251259625,0.001,3838.4,3838.0,2.60551762]
[1760251259798,0.001,3838.4,3838.1,3.28314698]
[1760251260118,0.001,3838.4,3838.3,2.60532006]
[1760251260484,0.001,3838.4,3838.3,3.06712006]
[1760251260916,0.1306,3838.4,3838.3,3.06712006]
[1760251261619,0.1306,3838.4,3838.1,0.2159]
[1760251261806,0.001,3838.4,3838.1,0.4618]
[1760251262119,0.001,3838.4,3838.2,0.30673112]
[1760251262489,0.1296,3838.2,3837.9,2.6055348]
[1760251262720,0.1296,3837.9,3837.8,2.60565949]
[1760251263519,0.1296,3837.9,3837.8,3.06745949]
[1760251267527,2.60627068,3836.9,3836.4,0.002]
[1760251267830,28.31799136,3836.9,3836.4,0.002]
[1760251268042,29.42469013,3836.9,3836.4,0.002]
[1760251268242,24.69712768,3836.9,3836.8,0.0007]
[1760251268441,14.95801768,3836.9,3836.8,0.0007]
[1760251268736,17.77628168,3836.9,3836.8,0.0007]
[1760251268884,15.80299368,3836.9,3836.8,0.0007]
[1760251269085,7.40806176,3836.9,3836.8,0.0007]
[1760251269322,6.75465168,3836.9,3836.8,0.0007]
[1760251269528,6.62695168,3836.9,3836.8,0.0007]
[1760251269844,6.72546068,3836.9,3836.8,0.0007]
[1760251270386,6.85316068,3836.9,3836.8,0.0007]
[1760251270590,4.65397068,3836.9,3836.8,0.0007]
[1760251270811,11.05272768,3836.9,3836.8,0.0007]
[1760251271723,9.02951368,3836.9,3836.8,0.0007]
[1760251272922,11.08337268,3836.9,3836.8,0.0007]
[1760251273139,13.00337268,3836.9,3836.8,0.0007]
[1760251273344,13.03413173,3836.9,3836.8,0.0007]
[1760251273835,13.77679368,3836.9,3836.8,0.0007]
[1760251274837,4.65397068,3836.9,3836.8,0.0007]
[1760251275134,16.63352068,3836.9,3836.8,0.0007]
[1760251275503,14.25716868,3836.9,3836.8,0.0007]
[1760251275705,12.85742368,3836.9,3836.8,0.0007]
[1760251276131,8.18892968,3836.9,3836.8,0.0007]
[1760251276341,4.52627068,3836.9,3836.8,0.0007]
[1760251276545,0.1277,3837.8,3836.8,0.0007]
[1760251276703,7.299044,3837.4,3836.8,0.0007]
[1760251277039,1.92,3837.3,3836.8,0.0007]
[1760251277241,7.54597874,3837.4,3836.8,0.0007]
[1760251277446,2.60593474,3837.4,3836.8,0.0007]
[1760251278138,2.118774,3837.7,3836.8,0.0007]
[1760251278339,0.4088285,3837.8,3836.9,0.4618]
[1760251278549,0.1296,3837.0,3836.9,0.4618]
[1760251278838,0.1296,3837.0,3836.9,3.06807068]
[1760251282443,0.1296,3837.0,3836.8,0.0007]
[1760251283144,1.92,3837.0,3836.8,0.0007]
[1760251283317,1.92,3837.1,3836.8,0.0007]
[1760251283847,4.52617095,3837.1,3836.8,0.0007]
[1760251284149,4.46824112,3837.1,3836.8,0.0007]
[1760251284570,2.60603161,3837.3,3836.8,0.0007]
[1760251284713,2.60608196,3837.2,3836.8,0.4625]
[1760251284914,2.60617559,3837.1,3836.8,0.0007]
[1760251285110,2.60608174,3837.2,3836.8,0.0007]
[1760251285345,3.81069,3837.1,3836.8,0.0007]
[1760251285514,4.598241,3837.2,3836.8,0.0007]
[1760251285716,2.60609934,3837.2,3836.8,0.0007]
[1760251286027,4.52625121,3837.0,3836.8,0.0007]
[1760251286746,2.60615173,3837.1,3836.8,0.0007]
[1760251286911,2.60606692,3837.2,3836.8,0.0007]
[1760251288952,1.92,3837.5,3836.9,0.4508]
[1760251289155,1.92,3837.2,3836.9,0.4508]
[1760251289440,1.92,3837.2,3836.8,0.0007]
[1760251289640,2.60607906,3837.2,3836.8,0.0007]
[1760251290781,1.92,3837.2,3836.8,0.0007]
[1760251291573,2.6060987,3837.2,3836.8,0.0007]
[1760251291807,1.92,3837.1,3836.8,0.0007]
[1760251292453,2.60613688,3837.1,3836.8,0.0007]
[1760251292654,1.92,3837.1,3836.8,0.0007]
[1760251293465,2.60600845,3837.3,3836.8,0.0007]
[1760251293670,1.92,3837.1,3836.8,0.0007]
[1760251293856,1.92,3837.2,3836.8,0.0007]
[1760251295367,0.001,3837.1,3836.8,0.0007]
[1760251295785,0.001,3837.1,3836.9,0.4508]
[1760251295956,0.001,3837.1,3836.8,2.86775352]
[1760251296278,0.001,3837.1,3836.9,0.4508]
[1760251296674,0.1296,3836.9,3836.8,2.86775494]
[1760251296881,0.1296,3836.9,3836.8,3.31855494]
[1760251297594,0.1296,3836.9,3836.8,2.86775494]
[1760251297891,0.1296,3836.9,3836.8,0.0007]
[1760251298054,0.1296,3836.9,3836.8,2.60703861]
[1760251298257,0.1296,3836.9,3836.8,0.0007]
[1760251298681,0.1296,3836.9,3836.8,2.60703861]
[1760251298884,0.1296,3836.9,3836.8,3.05783861]
[1760251299361,0.1296,3836.9,3836.8,0.0007]
[1760251300010,0.001,3837.1,3837.0,2.60620276]
[1760251300491,0.001,3837.1,3837.0,3.05700276]
[1760251301269,0.001,3837.1,3837.0,0.4508]
[1760251304607,0.001,3837.1,3836.9,2.60625074]
[1760251305324,0.001,3837.1,3837.0,0.4736]
[1760251305475,0.001,3837.1,3837.0,3.07980276]
[1760251305807,0.001,3837.1,3837.0,3.67907351]
[1760251308498,0.001,3837.1,3837.0,3.20547351]
[1760251308686,0.001,3837.1,3837.0,3.67907351]
[1760251308886,0.001,3837.1,3837.0,3.20547351]
[1760251309581,0.001,3837.1,3837.0,3.67907351]
[1760251314530,0.001,3837.1,3837.0,3.20547351]
[1760251314708,0.001,3837.1,3837.0,2.60620276]
[1760251315107,0.1296,3837.0,3836.8,0.3065027]
[1760251315304,0.001,3837.1,3836.8,2.60698266]
[1760251315521,0.001,3837.1,3836.9,2.60626598]
[1760251318037,0.001,3837.1,3837.0,2.60620276]
[1760251319526,0.001,3837.1,3836.9,2.60626042]
[1760251319727,0.001,3837.1,3836.8,0.0007]
[1760251320044,0.001,3837.1,3836.9,2.60622565]
[1760251320640,0.001,3837.1,3837.0,3.04410276]
[1760251324445,0.001,3837.1,3837.0,2.60620276]
[1760251324650,0.1296,3837.0,3836.9,2.60624988]
[1760251324825,0.001,3837.1,3836.9,2.60624988]
[1760251326122,0.1296,3836.9,3836.8,0.0007]
[1760251327338,23.41071392,3836.9,3836.8,0.0007]
[1760251327571,9.5505697,3836.9,3836.8,0.0007]
[1760251327769,10.05053353,3836.9,3836.8,0.0007]
[1760251327936,9.23188253,3836.9,3836.8,0.0007]
[1760251328360,11.51234253,3836.9,3836.8,0.0007]
[1760251328535,8.76334253,3836.9,3836.8,0.0007]
[1760251329241,5.03411453,3836.9,3836.8,0.0007]
[1760251329426,15.77469553,3836.9,3836.8,0.0007]
[1760251330120,15.36585168,3836.9,3836.8,0.0007]
[1760251330325,15.83817268,3836.9,3836.8,0.0007]
[1760251331384,16.79170868,3836.9,3836.8,0.0007]
[1760251331531,2.60627068,3836.9,3836.8,0.0007]
[1760251331885,4.63399168,3836.9,3836.8,0.0007]
[1760251332084,4.73299168,3836.9,3836.8,0.0007]
[1760251332374,2.70527068,3836.9,3836.8,0.0007]
[1760251332576,6.78704668,3836.9,3836.8,0.0007]
[1760251333469,11.07537568,3836.9,3836.8,0.0007]
[1760251333669,12.99537568,3836.9,3836.8,0.0007]
[1760251333970,11.93989768,3836.9,3836.8,0.0007]
[1760251334176,9.58362668,3836.9,3836.8,0.0007]
[1760251334324,4.62527068,3836.9,3836.8,0.0007]
[1760251334530,7.20875668,3836.9,3836.8,0.0007]
[1760251334847,1.92,3836.9,3836.8,0.0007]
[1760251335043,1.92,3836.9,3836.8,0.4386]
[1760251335249,0.001,3837.1,3836.8,0.4386]
[1760251335470,0.001,3837.1,3836.9,0.4379]
[1760251335761,0.001,3837.1,3836.8,0.0007]
[1760251335762,2.6062531,3837.0,3836.8,0.0007]
[1760251336130,10.10595068,3836.9,3836.8,0.0007]
[1760251336329,9.67595068,3836.9,3836.8,0.0007]
[1760251337352,9.46723768,3836.9,3836.8,0.0007]
[1760251338380,12.02861568,3836.9,3836.8,0.0007]
[1760251339377,12.02861868,3836.9,3836.8,0.0007]
[1760251339579,9.78690668,3836.9,3836.8,0.0007]
[1760251339744,4.52627068,3836.9,3836.8,0.0007]
[1760251340149,6.54811668,3836.9,3836.8,0.0007]
[1760251340344,4.52627068,3836.9,3836.8,0.0007]
[1760251340560,7.20611668,3836.9,3836.8,0.0007]
[1760251340748,6.99827068,3836.9,3836.8,0.0007]
[1760251341169,6.73427068,3836.9,3836.8,0.0007]
[1760251341371,4.52627068,3836.9,3836.8,0.0007]
[1760251341685,1.92,3836.9,3836.8,0.0007]
[1760251344753,2.60715359,3837.1,3836.8,0.0007]
[1760251348590,2.60715359,3837.1,3836.9,0.4496]
[1760251348591,0.001,3837.1,3836.9,0.4496]
[1760251348889,0.001,3837.1,3837.0,0.4496]
[1760251349283,0.001,3837.1,3837.0,3.36145776]
[1760251351392,0.001,3837.1,3837.0,0.305655]
[1760251351592,0.1296,3837.0,3836.8,2.60702458]
[1760251351762,0.001,3837.1,3836.8,2.60702458]
[1760251352400,0.001,3837.1,3836.9,3.05586324]
[1760251352969,0.001,3837.1,3837.0,2.60620276]
[1760251353167,0.001,3837.1,3837.0,3.05580276]
[1760251353866,0.001,3837.1,3837.0,3.62208582]
[1760251358699,0.001,3837.1,3837.0,3.05580276]
[1760251359901,1.91947817,3837.9,3837.0,3.05580276]
[1760251360111,1.91947817,3837.9,3837.3,2.60599631]
[1760251360278,0.1279,3837.9,3836.8,0.0007]
[1760251360483,0.1296,3837.0,3836.9,2.60627068]
[1760251360728,2.60571045,3837.8,3837.1,2.60610304]
[1760251361211,0.2278,3837.9,3837.2,2.60606503]
[1760251361212,2.83340679,3837.9,3837.2,2.60606503]
[1760251361430,0.1296,3837.2,3837.1,2.60611893]
[1760251361608,2.6056682,3837.8,3837.1,2.60611893]
[1760251361985,4.5257287,3837.7,3837.0,2.606189]
[1760251362180,0.1296,3836.9,3836.8,2.60702215]
[1760251362387,0.1296,3836.9,3836.8,3.62312681]
[1760251363336,0.1296,3836.9,3836.8,3.17352681]
[1760251363744,0.1296,3836.9,3836.8,3.63772681]
[1760251366447,0.1296,3836.9,3836.8,8.90033205]
[1760251367946,0.1296,3836.9,3836.8,3.63772681]
[1760251369563,0.001,3837.5,3837.4,2.60593109]
[1760251369913,0.001,3837.5,3837.4,3.07013109]
[1760251373788,0.001,3837.5,3837.4,3.70373109]
[1760251375234,0.001,3837.5,3837.4,3.83433109]
[1760251383062,0.001,3837.5,3837.4,5.88393109]
[1760251383262,0.001,3837.5,3837.4,7.25918656]
[1760251383648,1e-08,3838.0,3837.9,3.23919159]
[1760251383850,1e-08,3838.0,3837.9,8.50179683]
[1760251384140,1e-08,3838.0,3837.9,8.97499683]
[1760251384374,1e-08,3838.0,3837.9,9.07952102]
[1760251384572,1e-08,3838.0,3837.9,10.24804079]
[1760251389991,0.001,3839.9,3839.0,3.23844501]
[1760251390393,0.001,3839.9,3839.0,3.71164501]
[1760251392378,0.001,3839.9,3839.0,3.07804501]
[1760251393604,0.1296,3839.0,3838.9,2.60488732]
[1760251393970,0.001,3839.9,3839.0,2.60484501]
[1760251394164,0.1296,3839.2,3839.0,3.59901824]
[1760251395701,0.001,3839.9,3839.0,4.23261824]
[1760251396094,0.001,3839.9,3839.0,4.57708078]
[1760251401434,0.001,3839.5,3839.0,4.57708078]
[1760251405689,0.001,3839.5,3839.0,4.70668078]
[1760251415817,1e-08,3839.9,3839.8,3.2379023]
[1760251416146,1e-08,3839.9,3839.8,4.23906677]
[1760251416317,1e-08,3839.9,3839.8,4.70776677]
[1760251416664,0.006,3842.1,3839.8,6.29772396]
[1760251416865,2.208268,3842.0,3839.9,3.07293448]
[1760251417009,4.128268,3842.0,3840.0,0.6336]
[1760251417310,1.92,3841.8,3841.0,2.60347525]
[1760251417507,1.92,3842.0,3841.2,2.60329447]
[1760251417934,1.92,3841.8,3841.2,2.60329447]
[1760251419522,2.60285136,3842.0,3841.2,2.60329447]
[1760251419717,4.52876019,3842.1,3841.0,3.07218784]
[1760251419919,12.14592,3842.0,3841.2,2.60334357]
[1760251420753,0.127,3841.9,3841.2,2.60334357]
[1760251421051,1.92,3841.8,3841.0,2.60344369]
[1760251421554,7.45838,3841.8,3841.2,2.60331616]
[1760251421752,0.127,3841.9,3841.2,2.60331616]
[1760251422356,1.92,3841.7,3841.2,2.60331616]
[1760251422523,0.127,3841.9,3841.2,2.60331616]
[1760251422723,2.72988454,3841.9,3841.0,2.60347358]
[1760251422919,8.978505,3841.8,3840.7,0.78353019]
[1760251423227,0.006,3842.1,3840.8,0.4687]
[1760251423769,1.926,3842.1,3841.4,2.60320221]
[1760251423968,1.926,3842.1,3841.4,3.07190221]
[1760251424165,1.92,3841.9,3841.4,0.4687]
[1760251424371,1.92,3841.9,3841.3,2.60326597]
[1760251424664,2.60875504,3842.1,3841.3,2.60326597]
[1760251425165,1.92,3841.9,3841.2,2.60334082]
[1760251426135,1.92,3841.9,3841.3,2.60327029]
[1760251426470,1.92,3841.9,3841.4,3.05409027]
[1760251426639,1.92,3841.8,3841.5,0.4509]
[1760251426841,1.92,3842.0,3841.5,0.4509]
[1760251427236,1.92,3842.0,3841.4,2.60319027]
[1760251427465,1.92,3841.8,3841.4,0.4509]
[1760251427664,5.531248,3841.9,3841.4,0.4509]
[1760251427856,0.1296,3841.4,3841.3,2.60327494]
[1760251428561,0.1296,3841.4,3841.3,3.05417494]
[1760251432373,0.006,3842.1,3841.8,2.60288518]
[1760251432577,0.006,3842.1,3841.7,2.60300255]
[1760251432760,0.006,3842.1,3841.8,2.60292555]
[1760251432954,0.006,3842.1,3841.9,2.60287173]
[1760251433542,0.006,3842.1,3842.0,0.4509]
[1760251433738,0.006,3842.1,3842.0,3.05371103]
[1760251435976,0.006,3842.1,3841.8,2.60288952]
[1760251436344,0.006,3842.1,3841.9,2.6028724]
[1760251436546,0.006,3842.1,3841.7,3.04144764]
[1760251436758,0.006,3842.1,3841.7,1.00295227]
[1760251436973,0.006,3842.1,3841.8,2.60294653]
[1760251437275,0.007,3842.1,3841.7,3.60595417]
[1760251437874,0.007,3842.1,3841.7,3.16745417]
[1760251438378,0.007,3842.1,3841.7,3.60595417]
[1760251439660,0.007,3842.1,3841.8,0.4385]
[1760251440375,0.007,3842.1,3841.9,0.4385]
[1760251441200,0.007,3842.1,3841.7,3.16745417]
[1760251441394,0.007,3842.1,3841.8,0.4385]
[1760251441574,0.007,3842.1,3841.7,2.6030019]
[1760251441977,0.007,3842.1,3841.7,3.0415019]
[1760251442887,0.1296,3841.7,3841.2,2.60328586]
[1760251443094,0.1296,3841.4,3841.3,3.04175383]
[1760251443401,0.007,3842.1,3841.5,2.60312587]
[1760251443610,1.927,3842.1,3841.5,2.60312587]
[1760251444165,0.1296,3841.5,3841.4,3.04169835]
[1760251446180,0.1296,3841.5,3841.4,0.4385]
[1760251446720,0.1296,3841.5,3840.5,0.4385]
[1760251446867,0.1296,3841.1,3840.7,1.38929453]
[1760251447070,0.1296,3841.1,3841.0,2.60348867]
[1760251447695,0.1296,3841.1,3841.0,3.04198867]
[1760251450297,0.007,3842.1,3841.1,2.60342089]
[1760251450599,0.007,3842.1,3842.0,2.60281103]
[1760251451000,0.007,3842.1,3842.0,3.04131103]
[1760251451203,0.1366,3842.1,3842.0,3.04131103]
[1760251453800,0.007,3842.1,3842.0,3.04131103]
[1760251454002,0.007,3842.1,3842.0,3.67491103]
[1760251454206,1e-08,3842.1,3842.0,8.47204714]
[1760251454398,0.003,3843.3,3842.0,8.47204714]
[1760251454399,0.003,3843.3,3843.2,2.60199833]
[1760251454933,0.003,3843.3,3843.2,3.67409833]
[1760251455097,0.003,3844.4,3843.7,2.60164879]
[1760251455298,0.003,3844.4,3844.0,2.60140802]
[1760251455697,0.003,3844.4,3844.1,3.03988315]
[1760251455929,0.003,3844.4,3844.1,0.4385]
[1760251456116,0.003,3844.4,3844.0,2.60145087]
[1760251456429,0.003,3844.4,3844.1,0.4385]
[1760251456824,0.003,3844.4,3844.2,0.4385]
[1760251457209,0.003,3844.4,3844.3,0.4385]
[1760251457831,0.003,3844.4,3843.2,1.0721]
[1760251458043,0.003,3844.4,3843.6,0.4385]
[1760251458334,1.923,3844.4,3843.6,3.04022665]
[1760251458498,0.003,3844.4,3843.7,3.04014963]
[1760251458809,0.003,3844.4,3843.8,3.04009016]
[1760251459613,0.003,3844.4,3843.9,0.4385]
[1760251459833,0.003,3844.4,3843.9,3.04002338]
[1760251460328,0.003,3844.4,3844.0,0.4385]
[1760251460528,0.003,3844.4,3844.0,3.03994268]
[1760251460733,0.003,3844.4,3843.6,0.4385]
[1760251461043,2.20201913,3844.3,3843.6,0.4385]
[1760251461326,0.28201913,3844.3,3843.7,2.60165985]
[1760251461529,0.28201913,3844.3,3843.8,0.4385]
[1760251461729,0.28201913,3844.3,3843.8,3.04009143]
[1760251461899,0.003,3844.4,3843.9,0.4385]
[1760251462320,0.003,3844.4,3843.9,3.04000082]
[1760251462723,0.003,3844.4,3844.0,0.4385]
[1760251463112,0.003,3844.4,3844.1,0.4385]
[1760251463533,0.003,3844.4,3844.2,0.4385]
[1760251464337,0.003,3844.4,3843.2,3.23559833]
[1760251464338,0.003,3844.4,3844.3,0.74249514]
[1760251464500,0.003,3844.4,3844.3,0.4385]
[1760251465229,0.1296,3844.3,3844.0,3.05764585]
[1760251465430,0.003,3844.4,3844.1,0.4562]
[1760251465806,0.003,3844.4,3844.2,0.4562]
[1760251466002,0.003,3844.4,3844.0,0.4562]
[1760251466206,0.1296,3844.0,3843.5,2.60179343]
[1760251466407,0.1296,3844.0,3843.7,2.60160313]
[1760251466839,0.1296,3844.0,3843.8,0.4562]
[1760251467336,0.003,3844.4,3844.0,2.60145681]
[1760251467536,0.003,3844.4,3844.1,3.05754175]
[1760251468041,0.003,3844.4,3844.3,2.6012538]
[1760251468644,0.003,3844.4,3844.3,3.0574538]
[1760251471742,0.003,3844.4,3844.3,0.4562]
[1760251472211,0.003,3844.4,3843.1,0.2157]
[1760251472413,0.003,3844.4,3843.8,3.05774082]
[1760251472608,0.003,3844.4,3843.9,2.60150139]
[1760251472828,0.003,3844.4,3844.0,2.60145457]
[1760251473144,0.003,3844.4,3843.8,0.4562]
[1760251473343,0.003,3844.4,3844.1,2.60138576]
[1760251473718,0.003,3844.4,3844.2,0.4562]
[1760251474228,0.003,3844.4,3844.2,2.60130602]
[1760251474418,0.003,3844.4,3844.3,0.4562]
[1760251474610,0.004,3844.4,3844.3,0.4562]
[1760251476055,0.004,3844.4,3844.3,3.0574538]
[1760251476258,0.004,3844.4,3844.3,3.62334393]
[1760251483971,0.004,3844.4,3844.3,1.02209013]
[1760251484670,0.004,3844.4,3844.3,3.62334393]
[1760251484857,0.1296,3845.0,3844.9,2.60084787]